bitfinex/quotes_BTCUSD_20250101
["timestamp","ask_amount","ask_price","bid_price","bid_amount"]
[1735769396414,0.210739,94905.0,94893.0,0.10698632]
[1735769396614,0.210739,94905.0,94895.0,0.01109372]
[1735769396862,0.210739,94905.0,94894.0,0.01109607]
[1735769397092,0.210739,94905.0,94895.0,0.01409372]
[1735769398641,0.210739,94905.0,94895.0,0.01109372]
[1735769398931,0.210753,94898.0,94894.0,0.003]
[1735769399137,0.13229856,94896.0,94895.0,0.01109372]
[1735769399336,0.13229856,94896.0,94886.0,0.042225]
[1735769399542,0.21077,94890.0,94886.0,0.042225]
[1735769400156,0.22148013,94890.0,94872.0,8.54e-05]
[1735769400373,0.22148013,94890.0,94873.0,0.10398632]
[1735769400547,0.210794,94879.0,94876.0,0.042227]
[1735769400949,0.210794,94879.0,94877.0,0.01113598]
[1735769401153,0.210788,94882.0,94876.0,0.042227]
[1735769402355,0.210792,94880.0,94876.0,0.042227]
[1735769402767,0.0762,94881.0,94876.0,0.042227]
[1735769403433,0.0762,94881.0,94872.0,8.54e-05]
[1735769403645,0.0762,94881.0,94873.0,0.042227]
[1735769403924,0.0762,94881.0,94873.0,0.05440184]
[1735769404308,0.0762,94881.0,94873.0,0.042227]
[1735769404891,0.0762,94881.0,94876.0,0.001]
[1735769405309,0.0762,94881.0,94873.0,0.042227]
[1735769405534,0.0762,94881.0,94874.0,0.0121725]
[1735769407621,0.0762,94881.0,94872.0,8.54e-05]
[1735769407921,0.0001708,94882.0,94880.0,0.210791]
[1735769408335,0.0001708,94882.0,94881.0,0.01218301]
[1735769409525,0.0001708,94882.0,94881.0,0.01518301]
[1735769424947,0.0001708,94882.0,94881.0,0.01218301]
[1735769425280,0.0001708,94882.0,94881.0,0.002]
[1735769425486,0.0001708,94882.0,94881.0,0.01418301]
[1735769429293,0.1245708,94882.0,94881.0,0.01418301]
[1735769429524,0.1245708,94882.0,94881.0,0.002]
[1735769430058,0.1245708,94882.0,94863.0,0.210829]
[1735769430256,0.210798,94878.0,94863.0,0.210829]
[1735769430465,0.21079,94881.0,94867.0,0.210819]
[1735769430845,0.21079,94881.0,94873.0,0.0122018]
[1735769431071,0.1245708,94882.0,94873.0,0.0122018]
[1735769431963,0.1245708,94882.0,94873.0,0.01867707]
[1735769432927,0.1245708,94882.0,94873.0,0.54567707]
[1735769433335,0.1245708,94882.0,94873.0,0.54467707]
[1735769440955,0.0483708,94882.0,94873.0,0.64866339]
[1735769441157,0.0001708,94882.0,94873.0,0.64866339]
[1735769442794,0.0001708,94882.0,94878.0,0.210796]
[1735769443148,0.0001708,94882.0,94879.0,0.01795005]
[1735769462865,0.00011674,94882.0,94879.0,0.01795005]
[1735769464528,0.00011674,94882.0,94879.0,0.01803545]
[1735769474661,0.00011674,94882.0,94880.0,0.31477832]
[1735769475072,0.00011674,94882.0,94881.0,0.01823437]
[1735769475321,0.00011674,94882.0,94881.0,0.12222069]
[1735769476983,0.00011674,94882.0,94881.0,0.64920069]
[1735769478709,0.00011674,94882.0,94881.0,0.74721558]
[1735769479753,0.00011674,94882.0,94881.0,0.65220069]
[1735769481402,0.00011674,94882.0,94881.0,0.66137317]
[1735769485545,0.00011674,94882.0,94881.0,0.76137317]
[1735769485876,0.00011674,94882.0,94881.0,1.13507317]
[1735769486787,0.00011674,94882.0,94881.0,1.20487317]
[1735769487020,7.4e-07,94882.0,94881.0,1.55517617]
[1735769487816,7.4e-07,94882.0,94881.0,1.55217617]
[1735769488062,7.4e-07,94882.0,94881.0,1.55226157]
[1735769488295,0.00100074,94882.0,94881.0,1.79119963]
[1735769488619,7.4e-07,94882.0,94881.0,1.78719963]
[1735769488859,7.4e-07,94882.0,94881.0,1.89829963]
[1735769489238,7.4e-07,94882.0,94881.0,1.66336157]
[1735769489654,0.210674,94933.0,94881.0,1.66336157]
[1735769489655,0.09411602,94939.0,94923.0,0.0819]
[1735769489865,0.09411602,94939.0,94938.0,0.210663]
[1735769490271,0.0001708,94939.0,94938.0,0.22980531]
[1735769490867,0.00422029,94939.0,94938.0,0.22980531]
[1735769491404,0.00022029,94939.0,94938.0,0.22980531]
[1735769491763,0.00022029,94939.0,94938.0,0.23080531]
[1735769491986,0.00022029,94939.0,94938.0,0.75746531]
[1735769495673,0.00022029,94939.0,94938.0,0.86145163]
[1735769496369,8e-07,94952.0,94951.0,0.383634]
[1735769496512,0.0001708,94967.0,94966.0,0.310601]
[1735769496714,0.0001708,94967.0,94966.0,0.41458732]
[1735769496919,0.00066718,94967.0,94966.0,0.43556959]
[1735769497329,0.00066718,94967.0,94966.0,0.76866959]
[1735769497932,0.00066718,94967.0,94966.0,1.29516959]
[1735769499740,0.00066718,94967.0,94966.0,1.30016959]
[1735769501269,0.00066718,94967.0,94966.0,1.30909172]
[1735769502286,0.0001708,94977.0,94976.0,0.210579]
[1735769502494,0.00022042,94977.0,94976.0,0.84101532]
[1735769502646,0.00022042,94977.0,94976.0,0.90407358]
[1735769503650,0.00022042,94977.0,94976.0,0.90707358]
[1735769505190,0.0785,94996.0,94990.0,0.210548]
[1735769505395,0.00022039,94991.0,94990.0,0.31453432]
[1735769505577,0.00022039,94991.0,94990.0,0.33545897]
[1735769511491,0.00022039,94991.0,94990.0,0.02092465]
[1735769511710,0.00022039,94991.0,94987.0,0.421108]
[1735769511913,0.00022039,94991.0,94990.0,0.02092465]
[1735769512125,0.00022039,94991.0,94987.0,0.421108]
[1735769512350,0.00022039,94991.0,94990.0,0.02092465]
[1735769512875,0.00022039,94991.0,94987.0,0.421108]
[1735769513075,0.00022039,94991.0,94990.0,0.02092465]
[1735769513288,0.00022039,94991.0,94976.0,0.5686353]
[1735769513289,0.15,94988.0,94976.0,0.5265353]
[1735769513451,0.10524888,94991.0,94976.0,0.5265353]
[1735769513452,0.1228,94977.0,94976.0,0.5265353]
[1735769514076,0.0468,94977.0,94976.0,0.5265353]
[1735769514473,0.076,94986.0,94977.0,0.210577]
[1735769514673,0.076,94986.0,94982.0,0.210565]
[1735769514916,0.0468,94990.0,94982.0,0.736985]
[1735769515299,0.0468,94990.0,94983.0,0.210563]
[1735769515725,0.0468,94990.0,94983.0,0.736973]
[1735769518280,0.0468,94990.0,94983.0,0.52641]
[1735769519564,0.0468,94990.0,94984.0,0.210561]
[1735769519815,0.0468,94990.0,94984.0,0.736961]
[1735769520015,0.0468,94990.0,94988.0,0.210552]
[1735769520217,0.0468,94990.0,94984.0,0.736961]
[1735769520788,0.0468,94990.0,94984.0,0.5264]
[1735769520988,0.0468,94990.0,94985.0,0.01447134]
[1735769521191,0.076,94995.0,94985.0,0.01447134]
[1735769521395,0.286539,94995.0,94985.0,0.54087134]
[1735769522286,0.21055,94990.0,94985.0,0.54087134]
[1735769522483,0.21055,94990.0,94985.0,0.5264]
[1735769522629,0.21055,94990.0,94986.0,0.01446894]
[1735769522830,0.21055,94990.0,94986.0,0.54085894]
[1735769523496,0.210541,94993.0,94986.0,0.54085894]
[1735769523703,0.00104217,94992.0,94986.0,0.54085894]
[1735769524911,0.0001706,94991.0,94986.0,0.54085894]
[1735769545013,0.288955,94987.0,94986.0,0.54085894]
[1735769545139,0.46204132,94987.0,94986.0,0.54085894]
[1735769545340,0.46204132,94987.0,94986.0,0.52639]
[1735769545542,0.46204132,94987.0,94986.0,0.5384439]
[1735769546775,0.46504132,94987.0,94986.0,0.5384439]
[1735769547648,0.46504132,94987.0,94986.0,0.5385292]
[1735769551572,0.61504132,94987.0,94986.0,0.5385292]
[1735769552330,0.70962346,94987.0,94986.0,0.5385292]
[1735769553516,0.61504132,94987.0,94986.0,0.5385292]
[1735769554342,0.61498747,94987.0,94986.0,0.5385292]
[1735769559209,0.61612907,94987.0,94986.0,0.5385292]
[1735769560450,0.80533282,94987.0,94986.0,0.5385292]
[1735769563131,0.90931914,94987.0,94986.0,0.5385292]
[1735769565117,0.80533282,94987.0,94986.0,0.5385292]
[1735769568197,0.80646998,94987.0,94986.0,0.5385292]
[1735769568701,0.90646998,94987.0,94986.0,0.5385292]
[1735769568929,1.04722998,94987.0,94986.0,0.5385292]
[1735769569477,1.06187234,94987.0,94986.0,0.4543052]
[1735769569780,1.16585866,94987.0,94986.0,0.3490252]
[1735769569979,1.26585866,94987.0,94986.0,0.3159153]
[1735769570179,1.07665491,94987.0,94986.0,0.3159153]
[1735769570468,1.07365491,94987.0,94986.0,0.28510712]
[1735769570619,1.08065491,94987.0,94986.0,0.26505112]
[1735769570959,1.08082571,94987.0,94986.0,0.22293912]
[1735769571098,1.35735221,94987.0,94986.0,0.17982712]
[1735769571525,1.36535221,94987.0,94986.0,0.18082712]
[1735769571727,1.36535221,94987.0,94986.0,0.13871512]
[1735769571922,1.35735221,94987.0,94986.0,0.09560312]
[1735769572127,1.07382571,94987.0,94986.0,0.07454712]
[1735769572343,1.08182571,94987.0,94986.0,0.07454712]
[1735769573116,1.08182571,94987.0,94986.0,0.03243512]
[1735769573443,0.35,94985.0,94984.0,4.2e-07]
[1735769573649,0.6652514,94985.0,94984.0,4.2e-07]
[1735769574797,0.6722514,94985.0,94984.0,4.2e-07]
[1735769576394,0.67246222,94985.0,94984.0,4.2e-07]
[1735769592935,0.483577,94977.0,94976.0,7.2e-07]
[1735769593153,0.58756332,94977.0,94976.0,3.1e-07]
[1735769593354,0.63766072,94977.0,94976.0,3.1e-07]
[1735769593719,0.58756332,94977.0,94976.0,3.1e-07]
[1735769593994,0.59356332,94977.0,94976.0,3.1e-07]
[1735769595360,0.49356332,94977.0,94976.0,3.1e-07]
[1735769595564,0.59356332,94977.0,94976.0,3.1e-07]
[1735769602847,0.87695703,94977.0,94976.0,3.1e-07]
[1735769603051,0.98094335,94977.0,94976.0,3.1e-07]
[1735769605457,0.69754964,94977.0,94976.0,8.571e-05]
[1735769605662,0.69772044,94977.0,94976.0,8.571e-05]
[1735769605997,0.87823744,94977.0,94976.0,8.571e-05]
[1735769607927,0.86772344,94977.0,94976.0,8.571e-05]
[1735769608460,0.87068975,94977.0,94976.0,8.571e-05]
[1735769611330,0.87101725,94977.0,94976.0,8.571e-05]
[1735769611732,0.81601725,94977.0,94976.0,8.571e-05]
[1735769612735,1.1350357,94977.0,94976.0,8.571e-05]
[1735769614077,0.81601725,94977.0,94976.0,8.571e-05]
[1735769619758,0.81543507,94977.0,94976.0,8.571e-05]
[1735769621335,0.70043207,94977.0,94976.0,8.571e-05]
[1735769621498,0.83340207,94977.0,94976.0,8.571e-05]
[1735769624603,0.70043207,94977.0,94976.0,8.571e-05]
[1735769625343,1.50514607,94977.0,94976.0,7.1e-07]
[1735769625548,0.87993207,94977.0,94976.0,7.1e-07]
[1735769629590,0.59644575,94977.0,94976.0,7.1e-07]
[1735769629790,0.69644575,94977.0,94976.0,7.1e-07]
[1735769630200,0.59644575,94977.0,94976.0,7.1e-07]
[1735769631336,0.69644575,94977.0,94976.0,7.1e-07]
[1735769631543,0.67344575,94977.0,94976.0,7.1e-07]
[1735769631693,0.77743207,94977.0,94976.0,7.1e-07]
[1735769640245,0.47344575,94977.0,94976.0,7.1e-07]
[1735769641507,0.46744575,94977.0,94976.0,7.1e-07]
[1735769641711,0.47144575,94977.0,94976.0,7.1e-07]
[1735769644095,0.21804161,94977.0,94976.0,0.12350071]
[1735769644334,0.0041708,94977.0,94976.0,0.12350071]
[1735769644540,0.0041708,94977.0,94976.0,0.13468027]
[1735769644744,0.00411677,94977.0,94976.0,0.12350071]
[1735769645130,0.00011677,94977.0,94976.0,0.13468027]
[1735769645673,0.00111677,94977.0,94976.0,0.13468027]
[1735769646481,0.00106279,94977.0,94976.0,0.13468027]
[1735769647354,6.279e-05,94977.0,94976.0,0.13468027]
[1735769647723,6.279e-05,94977.0,94976.0,0.13568027]
[1735769648128,6.279e-05,94977.0,94976.0,0.13468027]
[1735769648341,8.81e-06,94977.0,94976.0,0.13468027]
[1735769648688,8.81e-06,94977.0,94976.0,0.13568027]
[1735769660835,8.81e-06,94977.0,94976.0,0.23966659]
[1735769662867,8.81e-06,94977.0,94976.0,0.23866659]
[1735769663056,8.81e-06,94977.0,94976.0,0.24066659]
[1735769663607,8.81e-06,94977.0,94976.0,0.23866659]
[1735769663808,8.81e-06,94977.0,94976.0,0.24066659]
[1735769664846,8.81e-06,94977.0,94976.0,0.26366659]
[1735769666816,8.81e-06,94977.0,94976.0,0.79011659]
[1735769670785,8.81e-06,94977.0,94976.0,0.90141659]
[1735769670988,8.81e-06,94977.0,94976.0,0.79011659]
[1735769671559,8.81e-06,94977.0,94976.0,0.79433459]
[1735769673113,8.81e-06,94977.0,94976.0,0.77133459]
[1735769673319,8.81e-06,94977.0,94976.0,0.76711659]
[1735769674888,8.81e-06,94977.0,94976.0,0.76511659]
[1735769675089,8.81e-06,94977.0,94976.0,0.76711659]
[1735769675751,0.26008844,94990.0,94977.0,0.210577]
[1735769675928,0.26008844,94990.0,94978.0,0.00945517]
[1735769677100,0.08419003,94990.0,94979.0,0.210572]
[1735769677528,0.08419003,94990.0,94980.0,0.00945037]
[1735769677731,0.2107118,94994.0,94980.0,0.00945037]
[1735769679373,0.2107118,94994.0,94980.0,0.01045037]
[1735769679882,0.2107118,94994.0,94980.0,0.00945037]
[1735769681023,0.2107118,94994.0,94980.0,0.01045037]
[1735769681903,0.0001708,94994.0,94981.0,0.10398632]
[1735769682106,0.0001708,94994.0,94987.0,0.210554]
[1735769682520,0.0001708,94994.0,94988.0,0.00943117]
[1735769682868,0.0001708,94994.0,94987.0,0.210554]
[1735769683066,0.0001708,94994.0,94989.0,0.00942877]
[1735769683313,0.0001708,94994.0,94987.0,0.210554]
[1735769683509,0.0001708,94994.0,94990.0,0.00942637]
[1735769683712,0.0001708,94994.0,94987.0,0.210554]
[1735769683916,0.0001708,94994.0,94990.0,0.00942637]
[1735769684109,0.0001708,94994.0,94987.0,0.210554]
[1735769684315,0.0001708,94994.0,94990.0,0.00942637]
[1735769684511,0.0001708,94994.0,94987.0,0.210554]
[1735769684781,0.0001708,94994.0,94990.0,0.00942637]
[1735769684909,0.0001708,94994.0,94983.0,0.210563]
[1735769685114,0.0789708,94994.0,94988.0,0.00943117]
[1735769685442,0.0789708,94994.0,94989.0,0.00942877]
[1735769685641,0.0789708,94994.0,94987.0,0.001]
[1735769685842,0.0789708,94994.0,94990.0,0.00942637]
[1735769686042,0.0789708,94994.0,94983.0,0.210563]
[1735769686263,0.0789708,94994.0,94990.0,0.00942637]
[1735769686454,0.0789708,94994.0,94988.0,0.001]
[1735769686623,0.0001708,94994.0,94990.0,0.00942637]
[1735769686828,0.0001708,94994.0,94988.0,0.001]
[1735769687051,0.0001708,94994.0,94990.0,0.00942637]
[1735769687251,0.0001708,94994.0,94988.0,0.001]
[1735769687456,0.0001708,94994.0,94990.0,0.00942637]
[1735769687680,0.1958714,94999.0,94983.0,0.210563]
[1735769687889,0.1958714,94999.0,94990.0,0.01042637]
[1735769688310,0.1958714,94999.0,94990.0,0.001]
[1735769688550,0.1958714,94999.0,94983.0,0.210563]
[1735769689041,0.1968714,94999.0,94985.0,0.210559]
[1735769689495,0.1968714,94999.0,94986.0,0.00943597]
[1735769691261,0.1958714,94999.0,94983.0,0.210563]
[1735769691492,0.1968714,94999.0,94987.0,0.00943357]
[1735769691726,0.1968714,94999.0,94984.0,0.00944077]
[1735769691916,0.1958714,94999.0,94988.0,0.00943117]
[1735769692139,0.1958714,94999.0,94983.0,0.210563]
[1735769692543,0.1958714,94999.0,94984.0,0.00944077]
[1735769693289,0.06694664,94998.0,94985.0,0.210559]
[1735769693739,0.06694664,94998.0,94986.0,0.00943597]
[1735769694521,0.210522,95002.0,94987.0,0.210555]
[1735769694931,0.08419003,95000.0,94988.0,0.00943117]
[1735769696422,0.08419003,95000.0,94985.0,0.210559]
[1735769696600,0.08419003,95000.0,94989.0,0.00942877]
[1735769696818,0.08419003,95000.0,94985.0,0.210559]
[1735769696996,0.08419003,95000.0,94981.0,0.10398632]
[1735769696997,0.15,94998.0,94982.0,0.210566]
[1735769697196,0.15,94998.0,94990.0,0.00942637]
[1735769697418,0.1501708,94998.0,94982.0,0.31455232]
[1735769697626,0.1501708,94998.0,94991.0,0.00942397]
[1735769698004,0.1501708,94998.0,94982.0,0.31455232]
[1735769698202,0.1501708,94998.0,94983.0,0.00944317]
[1735769698423,0.08419003,94992.0,94983.0,0.00944317]
[1735769698587,0.08419003,94992.0,94976.0,0.52645071]
[1735769698784,0.2333,94991.0,94976.0,0.63043703]
[1735769699675,0.2333,94991.0,94977.0,0.00945757]
[1735769700059,0.2333,94991.0,94977.0,0.53589757]
[1735769700320,0.23419003,94987.0,94977.0,0.53589757]
[1735769700927,0.23419003,94987.0,94977.0,0.53689757]
[1735769701520,0.23419003,94987.0,94977.0,0.53589757]
[1735769701675,0.23419003,94987.0,94977.0,0.53689757]
[1735769702506,0.15,94987.0,94977.0,0.53689757]
[1735769703855,0.173,94989.0,94977.0,0.53689757]
[1735769704765,0.173,94989.0,94977.0,0.53589757]
[1735769705007,0.173,94989.0,94977.0,0.53689757]
[1735769706135,0.15,94989.0,94978.0,0.076]
[1735769706593,0.15,94989.0,94979.0,0.00945277]
[1735769706955,0.16704096,94990.0,94980.0,0.21057]
[1735769707155,0.26179584,94990.0,94980.0,0.21057]
[1735769707356,0.26179584,94990.0,94981.0,0.00944797]
[1735769707767,0.24475488,94990.0,94981.0,0.00944797]
[1735769707969,0.09475488,94990.0,94981.0,0.00944797]
[1735769708410,0.08419003,94991.0,94978.0,0.0732]
[1735769708632,0.08419003,94991.0,94982.0,0.00944557]
[1735769709043,0.08419003,94991.0,94978.0,0.0732]
[1735769709218,0.08419003,94991.0,94983.0,0.00944317]
[1735769709426,0.08419003,94991.0,94978.0,0.0732]
[1735769709582,0.08419003,94991.0,94984.0,0.00944077]
[1735769709785,0.08419003,94991.0,94978.0,0.0833243]
[1735769710004,0.08419003,94991.0,94981.0,0.001]
[1735769710387,0.08419003,94991.0,94982.0,0.00944557]
[1735769710587,0.360544,94992.0,94982.0,0.00944557]
[1735769710792,0.09475488,94993.0,94978.0,0.0833243]
[1735769710991,0.09475488,94993.0,94983.0,0.00944317]
[1735769711193,0.09475488,94993.0,94979.0,0.210572]
[1735769711392,0.09475488,94993.0,94984.0,0.00944077]
[1735769711603,0.09475488,94993.0,94985.0,0.00943837]
[1735769711967,0.09475488,94993.0,94982.0,0.210564]
[1735769712145,0.15,94997.0,94982.0,0.31455032]
[1735769712303,0.023,94996.0,94984.0,0.210561]
[1735769712755,0.023,94996.0,94985.0,0.00943837]
[1735769713289,0.0001708,94998.0,94985.0,0.00943837]
[1735769714024,0.023,94996.0,94985.0,0.00943837]
[1735769714222,0.024,94996.0,94982.0,0.10398632]
[1735769714424,0.023,94994.0,94982.0,0.10398632]
[1735769714741,0.023,94992.0,94983.0,0.00800712]
[1735769715123,0.023,94992.0,94981.0,0.210568]
[1735769715326,0.023,94992.0,94984.0,0.0066702]
[1735769715527,0.023,94992.0,94981.0,0.31455432]
[1735769715528,0.0229249,94992.0,94982.0,0.006675]
[1735769715731,0.0229249,94992.0,94985.0,0.0066678]
[1735769715956,0.0229249,94992.0,94981.0,0.31455432]
[1735769716262,0.0229249,94992.0,94986.0,0.0066654]
[1735769716459,0.0229249,94992.0,94981.0,0.10398632]
[1735769716687,0.0229249,94992.0,94982.0,0.006675]
[1735769722476,0.0229249,94992.0,94982.0,0.0067603]
[1735769722632,0.0230955,94992.0,94982.0,0.0067603]
[1735769728114,0.0001706,94992.0,94983.0,0.31454932]
[1735769728317,0.0001706,94992.0,94984.0,0.0066702]
[1735769728546,0.0001706,94992.0,94985.0,0.10398632]
[1735769729083,0.0001706,94992.0,94986.0,0.0066654]
[1735769729298,0.0001706,94992.0,94987.0,0.10398632]
[1735769729496,0.0001706,94992.0,94989.0,0.1]
[1735769729645,0.0001706,94992.0,94990.0,0.10398632]
[1735769729852,0.0001706,94992.0,94990.0,0.11064212]
[1735769730082,0.0001706,94992.0,94990.0,0.63701212]
[1735769731059,0.0001706,94992.0,94990.0,0.63035632]
[1735769732474,0.0001706,94992.0,94990.0,0.63135632]
[1735769734280,0.0429126,94991.0,94990.0,0.52737]
[1735769734495,0.2738126,94991.0,94990.0,0.52737]
[1735769734843,0.2738126,94991.0,94990.0,0.5274553]
[1735769735120,0.27375836,94991.0,94990.0,0.5274553]
[1735769735320,0.27375836,94991.0,94990.0,0.5264553]
[1735769735555,0.27375836,94991.0,94990.0,0.5274553]
[1735769735803,0.48430436,94991.0,94990.0,0.5274553]
[1735769736014,0.48430436,94991.0,94990.0,0.5264553]
[1735769736247,0.48430436,94991.0,94990.0,0.5274553]
[1735769736726,0.48430436,94991.0,94990.0,0.5264553]
[1735769737210,0.48430436,94991.0,94990.0,0.5274553]
[1735769737945,0.31499873,94991.0,94990.0,0.5274553]
[1735769738496,0.31499873,94991.0,94990.0,0.5264553]
[1735769738661,0.31599873,94991.0,94990.0,0.5264553]
[1735769739064,0.17294576,94991.0,94990.0,0.5264553]
[1735769739876,0.15,94991.0,94990.0,0.5274553]
[1735769740073,0.0001706,94992.0,94990.0,0.5274553]
[1735769740290,0.09468956,94991.0,94990.0,0.5274553]
[1735769740485,0.09468956,94991.0,94990.0,0.63144162]
[1735769741347,0.09468956,94991.0,94990.0,0.63044162]
[1735769741468,0.0001706,94992.0,94990.0,0.63044162]
[1735769741675,0.0001706,94992.0,94991.0,0.10398632]
[1735769744839,0.0001706,94992.0,94991.0,0.10498632]
[1735769748554,0.0001706,94992.0,94991.0,0.001]
[1735769751624,0.0231706,94992.0,94991.0,0.001]
[1735769751840,0.19709098,94992.0,94991.0,0.001]
[1735769752681,0.383546,94991.0,94990.0,0.5264553]
[1735769753021,0.40746638,94991.0,94990.0,0.5264553]
[1735769754252,0.50215594,94991.0,94990.0,0.5264553]
[1735769755243,0.40746638,94991.0,94990.0,0.5264553]
[1735769756720,0.48426638,94991.0,94990.0,0.5264553]
[1735769757286,0.77724848,94991.0,94990.0,0.5264553]
[1735769757484,0.78024848,94991.0,94990.0,0.5264553]
[1735769758423,0.6379527,94991.0,94990.0,0.5264553]
[1735769758659,0.6349527,94991.0,94990.0,0.5264553]
[1735769758913,0.6369527,94991.0,94990.0,0.5264553]
[1735769761427,0.53296638,94991.0,94990.0,0.5264553]
[1735769763845,0.67529298,94991.0,94990.0,0.5264553]
[1735769765447,0.67529298,94991.0,94990.0,0.5214553]
[1735769766032,0.68229298,94991.0,94990.0,0.5224553]
[1735769766862,0.53996638,94991.0,94990.0,0.5224553]
[1735769767602,0.76263007,94991.0,94990.0,0.5224553]
[1735769767799,0.65864375,94991.0,94990.0,0.5224553]
[1735769768533,0.75864375,94991.0,94990.0,0.4171803]
[1735769768739,0.75864375,94991.0,94990.0,0.3119053]
[1735769769678,0.75864375,94991.0,94990.0,0.2908503]
[1735769769883,0.85580067,94991.0,94990.0,0.2056303]
[1735769770110,0.85880067,94991.0,94990.0,0.2066303]
[1735769770239,0.85880067,94991.0,94990.0,0.2056303]
[1735769770458,0.86380067,94991.0,94990.0,0.2056303]
[1735769770790,0.86380067,94991.0,94990.0,0.1635203]
[1735769770791,0.85880067,94991.0,94990.0,0.1635203]
[1735769770991,0.85880067,94991.0,94990.0,0.1003553]
[1735769771526,0.86780067,94991.0,94990.0,0.1013553]
[1735769771726,0.66981435,94991.0,94990.0,0.0381903]
[1735769771975,0.66981435,94991.0,94990.0,0.0171353]
[1735769772879,0.65581435,94991.0,94990.0,0.0161353]
[1735769773072,0.64981435,94991.0,94990.0,0.0161353]
[1735769773258,0.65881435,94991.0,94990.0,0.0171353]
[1735769773456,0.66481435,94991.0,94990.0,0.0171353]
[1735769773864,0.65881435,94991.0,94990.0,0.0171353]
[1735769774399,0.66481435,94991.0,94990.0,0.0171353]
[1735769774829,0.76880067,94991.0,94990.0,0.0171353]
[1735769779355,0.86880067,94991.0,94990.0,3e-07]
[1735769779558,0.83018924,94991.0,94990.0,3e-07]
[1735769779758,0.83139761,94991.0,94990.0,3e-07]
[1735769779991,0.84608893,94991.0,94990.0,3e-07]
[1735769781466,0.84646297,94991.0,94990.0,3e-07]
[1735769782051,0.84439225,94991.0,94990.0,3e-07]
[1735769782952,0.84280984,94991.0,94990.0,6e-07]
[1735769783177,0.84439225,94991.0,94990.0,6e-07]
[1735769783395,0.173,94980.0,94977.0,2e-07]
[1735769783610,0.610075,94978.0,94977.0,2e-07]
[1735769783965,0.73033511,94978.0,94977.0,2e-07]
[1735769784171,0.85425549,94978.0,94977.0,2e-07]
[1735769784952,0.86325549,94978.0,94977.0,2e-07]
[1735769786653,0.15,94930.0,94927.0,0.0782]
[1735769786854,0.1,94957.0,94935.0,0.00049638]
[1735769786855,0.173,94955.0,94935.0,0.00049638]
[1735769787056,0.00129869,94932.0,94928.0,0.00548997]
[1735769787221,0.00129869,94932.0,94924.0,0.0471]
[1735769787222,0.15,94928.0,94924.0,0.0471]
[1735769787402,0.023,94927.0,94924.0,0.0471]
[1735769787604,0.023,94927.0,94925.0,0.00549718]
[1735769787783,0.19850279,94926.0,94925.0,0.00549718]
[1735769788139,0.173,94926.0,94925.0,0.00549718]
[1735769788342,0.173,94926.0,94924.0,0.0471]
[1735769788343,0.02183484,94925.0,94924.0,0.0471]
[1735769791355,0.173,94923.0,94920.0,0.0782]
[1735769791530,0.17404217,94923.0,94914.0,0.1272]
[1735769791733,0.00035445,94922.0,94914.0,0.1272]
[1735769791946,0.00035445,94922.0,94915.0,0.00552121]
[1735769792150,0.173,94923.0,94915.0,0.00552121]
[1735769793167,0.001,94923.0,94915.0,0.00552121]
[1735769793371,0.001,94923.0,94916.0,0.0788]
[1735769793573,0.001,94923.0,94917.0,0.0055164]
[1735769793774,0.002,94923.0,94917.0,0.0055164]
[1735769794217,0.023,94922.0,94917.0,0.0055164]
[1735769794619,0.023,94922.0,94916.0,0.0788]
[1735769794860,0.023,94924.0,94916.0,0.0788]
[1735769795570,0.00049574,94926.0,94916.0,0.0788]
[1735769795788,0.00049574,94926.0,94917.0,0.0055164]
[1735769798161,0.00049574,94926.0,94916.0,0.0788]
[1735769799276,0.173,94925.0,94916.0,0.0788]
[1735769800108,0.173,94923.0,94916.0,0.0788]
[1735769800530,0.173,94921.0,94916.0,0.0788]
[1735769801516,0.173,94923.0,94916.0,0.0788]
[1735769802062,0.173,94923.0,94915.0,8.53e-05]
[1735769802063,0.023,94916.0,94915.0,8.53e-05]
[1735769806016,0.173,94922.0,94915.0,8.53e-05]
[1735769807213,0.173,94923.0,94915.0,8.53e-05]
[1735769807420,0.001,94922.0,94915.0,8.53e-05]
[1735769808213,0.173,94923.0,94915.0,8.53e-05]
[1735769808561,0.174,94923.0,94915.0,8.53e-05]
[1735769809626,0.173,94923.0,94915.0,8.53e-05]
[1735769809936,0.001,94922.0,94915.0,8.53e-05]
[1735769811438,0.023,94923.0,94915.0,8.53e-05]
[1735769811584,0.001,94922.0,94916.0,0.0817]
[1735769811771,0.001,94922.0,94917.0,0.0543164]
[1735769812933,0.0001708,94925.0,94917.0,0.0543164]
[1735769813112,0.001,94922.0,94917.0,0.0543164]
[1735769813342,0.0001708,94925.0,94917.0,0.0543164]
[1735769813547,0.0001708,94925.0,94918.0,0.31469432]
[1735769813787,0.001,94922.0,94919.0,0.08826494]
[1735769813986,0.001,94922.0,94921.0,0.0817]
[1735769814188,0.001,94922.0,94921.0,0.19224642]
[1735769815016,0.0001708,94925.0,94921.0,0.19224642]
[1735769816453,0.0011708,94925.0,94921.0,0.19224642]
[1735769816883,0.0001708,94925.0,94921.0,0.19224642]
[1735769817101,0.0001708,94925.0,94921.0,0.71898642]
[1735769817282,0.0001708,94925.0,94921.0,0.71793311]
[1735769817662,0.0011708,94925.0,94921.0,0.71793311]
[1735769819872,0.0011708,94925.0,94922.0,0.10398632]
[1735769820074,0.0011708,94925.0,94922.0,0.63073632]
[1735769820277,0.0011708,94925.0,94923.0,0.00550198]
[1735769820480,0.0011708,94925.0,94924.0,0.10398632]
[1735769820682,0.0011708,94925.0,94924.0,0.63072632]
[1735769820951,0.0001708,94925.0,94924.0,0.6362259]
[1735769821431,0.0011708,94925.0,94924.0,0.6362259]
[1735769822720,0.0001708,94925.0,94924.0,0.6362259]
[1735769822927,0.0001708,94925.0,94924.0,0.53223958]
[1735769823136,0.0011708,94925.0,94924.0,0.53223958]
[1735769823340,0.0011708,94925.0,94924.0,0.8160259]
[1735769823558,0.0011708,94925.0,94924.0,0.9029259]
[1735769823715,0.0011708,94925.0,94924.0,1.0029259]
[1735769826026,0.0011708,94925.0,94924.0,1.01738145]
[1735769826998,0.0011708,94925.0,94924.0,1.0029259]
[1735769828886,0.0011708,94925.0,94924.0,1.0030113]
[1735769831637,0.0011708,94925.0,94924.0,1.01320942]
[1735769832836,0.00108039,94925.0,94924.0,1.01320942]
[1735769841660,0.00108039,94925.0,94924.0,2.06808088]
[1735769841882,0.00108039,94925.0,94924.0,2.0825296]
[1735769845987,0.00108039,94925.0,94924.0,2.06808088]
[1735769847104,0.00108039,94925.0,94924.0,2.08254196]
[1735769850696,0.00108039,94925.0,94924.0,1.0276705]
[1735769858583,0.00108039,94925.0,94924.0,1.12236568]
[1735769859644,0.00108039,94925.0,94924.0,1.0276705]
[1735769861578,0.00108039,94925.0,94924.0,1.16971327]
[1735769862425,0.00108039,94925.0,94924.0,1.51998234]
[1735769863482,0.00108039,94925.0,94924.0,1.37793957]